[Event "Early-Titled-Tuesday-Blitz-September-26-2023"]
[Site "Chess.com"]
[Date "2023.09.26"]
[Round "10"]
[White "jaskol95"]
[Black "scarabee43"]
[Result "0-1"]
[WhiteElo "2618"]
[BlackElo "2787"]
[TimeControl "180+1"]
[EndTime "9:56:31 PDT"]
[Termination "scarabee43 won by resignation"]

1. e4 {[%clk 0:03:00.9]} 1... c5 {[%clk 0:02:59.5]} 2. Nf3 {[%clk 0:03:00.1]}
2... e6 {[%clk 0:02:59.7]} 3. b4 {[%clk 0:02:59.6]} 3... cxb4 {[%clk 0:02:59.4]}
4. d4 {[%clk 0:02:59.7]} 4... d5 {[%clk 0:02:58.1]} 5. e5 {[%clk 0:02:57.6]}
5... Nc6 {[%clk 0:02:57.8]} 6. a3 {[%clk 0:02:57]} 6... Bd7 {[%clk 0:02:49.6]}
7. axb4 {[%clk 0:02:53.7]} 7... Bxb4+ {[%clk 0:02:49.2]} 8. c3 {[%clk
0:02:54.1]} 8... Be7 {[%clk 0:02:49.4]} 9. Bd3 {[%clk 0:02:49.6]} 9... Nh6
{[%clk 0:02:49.3]} 10. Na3 {[%clk 0:02:49.8]} 10... Nf5 {[%clk 0:02:47.7]} 11.
Nc2 {[%clk 0:02:50.4]} 11... Rc8 {[%clk 0:02:41.5]} 12. Ne3 {[%clk 0:02:49]}
12... Nxe3 {[%clk 0:02:41.3]} 13. fxe3 {[%clk 0:02:44.7]} 13... f5 {[%clk
0:02:34.9]} 14. exf6 {[%clk 0:02:43.4]} 14... Bxf6 {[%clk 0:02:35]} 15. O-O
{[%clk 0:02:42.8]} 15... O-O {[%clk 0:02:34.3]} 16. e4 {[%clk 0:02:32.6]} 16...
dxe4 {[%clk 0:02:34.1]} 17. Bxe4 {[%clk 0:02:33.5]} 17... e5 {[%clk 0:02:12]}
18. dxe5 {[%clk 0:02:24.1]} 18... Nxe5 {[%clk 0:01:38.9]} 19. Nxe5 {[%clk
0:02:18.2]} 19... Qb6+ {[%clk 0:01:38.9]} 20. Kh1 {[%clk 0:02:07.6]} 20... Bxe5
{[%clk 0:01:39.4]} 21. Rxf8+ {[%clk 0:01:50.1]} 21... Rxf8 {[%clk 0:01:39.4]}
22. Ba3 {[%clk 0:01:50.8]} 22... Rf7 {[%clk 0:00:32.6]} 23. Bd5 {[%clk
0:01:24.1]} 23... Be8 {[%clk 0:00:22.9]} 24. Rb1 {[%clk 0:01:12.3]} 24... Qa5
{[%clk 0:00:20.4]} 25. Bxf7+ {[%clk 0:00:57]} 25... Bxf7 {[%clk 0:00:20.1]} 26.
Bb4 {[%clk 0:00:57.4]} 26... Qc7 {[%clk 0:00:19.7]} 27. h3 {[%clk 0:00:40.2]}
27... a5 {[%clk 0:00:19.5]} 28. Ba3 {[%clk 0:00:40.8]} 28... h6 {[%clk
0:00:18.8]} 29. Qd3 {[%clk 0:00:35.8]} 29... Bc4 {[%clk 0:00:18]} 30. Qe4 {[%clk
0:00:33.4]} 30... b5 {[%clk 0:00:18]} 31. Re1 {[%clk 0:00:32]} 31... Bxc3 {[%clk
0:00:13.9]} 32. Qe8+ {[%clk 0:00:30.7]} 32... Kh7 {[%clk 0:00:13.6]} 33. Rd1
{[%clk 0:00:26.5]} 33... Qg3 {[%clk 0:00:09.7]} 34. Qe4+ {[%clk 0:00:25]} 34...
Qg6 {[%clk 0:00:09.5]} 35. Qf3 {[%clk 0:00:21.5]} 35... b4 {[%clk 0:00:09.2]}
36. Bc1 {[%clk 0:00:21.1]} 36... Bb3 {[%clk 0:00:08.2]} 37. Rd3 {[%clk
0:00:20.8]} 37... Bc2 {[%clk 0:00:08.3]} 38. Rxc3 {[%clk 0:00:20.9]} 38... Be4
{[%clk 0:00:07.8]} 39. Qg3 {[%clk 0:00:10.9]} 39... bxc3 {[%clk 0:00:08.2]} 40.
Qxg6+ {[%clk 0:00:11.4]} 40... Kxg6 {[%clk 0:00:08.6]} 41. Kg1 {[%clk 0:00:12]}
41... Kf5 {[%clk 0:00:08.3]} 42. Kf2 {[%clk 0:00:12.5]} 42... Ke5 {[%clk
0:00:09]} 43. Ke3 {[%clk 0:00:10.3]} 43... Bxg2 {[%clk 0:00:08.9]} 44. h4 {[%clk
0:00:10.9]} 44... Be4 {[%clk 0:00:08.2]} 45. Ba3 {[%clk 0:00:11.3]} 45... Kd5
{[%clk 0:00:08.4]} 46. Bc1 {[%clk 0:00:10.5]} 46... g6 {[%clk 0:00:08.3]} 47.
Ba3 {[%clk 0:00:10.8]} 47... Bf5 {[%clk 0:00:08.7]} 48. Ke2 {[%clk 0:00:09.6]}
48... Kc4 {[%clk 0:00:09.2]} 49. Kd1 {[%clk 0:00:10.2]} 49... Kb3 {[%clk
0:00:09.6]} 50. Bc1 {[%clk 0:00:10.7]} 50... a4 {[%clk 0:00:10.1]} 51. Bxh6
{[%clk 0:00:10.4]} 51... a3 {[%clk 0:00:10.7]} 52. Kc1 {[%clk 0:00:11]} 52... a2
{[%clk 0:00:11.2]} 0-1

[Event "Early-Titled-Tuesday-Blitz-September-26-2023"]
[Site "Chess.com"]
[Date "2023.09.26"]
[Round "10"]
[White "chessdjw"]
[Black "ContrVersia"]
[Result "0-1"]
[WhiteElo "2686"]
[BlackElo "2886"]
[TimeControl "180+1"]
[EndTime "9:56:32 PDT"]
[Termination "ContrVersia won on time"]

1. d4 {[%clk 0:03:00.9]} 1... Nf6 {[%clk 0:02:59.5]} 2. Nf3 {[%clk 0:02:58.4]}
2... e6 {[%clk 0:02:59.3]} 3. c4 {[%clk 0:02:56.9]} 3... d5 {[%clk 0:02:58.2]}
4. g3 {[%clk 0:02:57.3]} 4... dxc4 {[%clk 0:02:56.7]} 5. Bg2 {[%clk 0:02:57.6]}
5... Bd7 {[%clk 0:02:56]} 6. Nbd2 {[%clk 0:02:55.4]} 6... Bb5 {[%clk 0:02:55.8]}
7. Qc2 {[%clk 0:02:53.3]} 7... Nc6 {[%clk 0:02:51.9]} 8. O-O {[%clk 0:02:41.6]}
8... c3 {[%clk 0:01:57.4]} 9. bxc3 {[%clk 0:02:30.6]} 9... Bxe2 {[%clk
0:01:57.4]} 10. Re1 {[%clk 0:02:31.1]} 10... Ba6 {[%clk 0:01:57.6]} 11. Qa4
{[%clk 0:01:50.1]} 11... Qd7 {[%clk 0:01:57.1]} 12. Ng5 {[%clk 0:00:36.7]} 12...
Nd5 {[%clk 0:01:37]} 13. Bh3 {[%clk 0:00:23.6]} 13... Be7 {[%clk 0:01:20.7]} 14.
Nxe6 {[%clk 0:00:22.8]} 14... fxe6 {[%clk 0:01:19.2]} 15. Bxe6 {[%clk
0:00:22.7]} 15... Qd6 {[%clk 0:01:18.8]} 16. Qd1 {[%clk 0:00:14.2]} 16... Nd8
{[%clk 0:01:03.3]} 17. Qh5+ {[%clk 0:00:12.8]} 17... g6 {[%clk 0:01:02.1]} 18.
Qxd5 {[%clk 0:00:13.4]} 18... Nxe6 {[%clk 0:00:59.6]} 19. Qxe6 {[%clk
0:00:13.6]} 19... Qxe6 {[%clk 0:00:58.6]} 20. Rxe6 {[%clk 0:00:14.5]} 20... Kd7
{[%clk 0:00:59.3]} 21. Re1 {[%clk 0:00:13.6]} 21... Rae8 {[%clk 0:00:54.1]} 22.
Nf3 {[%clk 0:00:12.5]} 22... Kc8 {[%clk 0:00:50.4]} 23. Bg5 {[%clk 0:00:11.7]}
23... Bd6 {[%clk 0:00:50]} 24. a4 {[%clk 0:00:08.9]} 24... Bc4 {[%clk
0:00:42.7]} 25. Ne5 {[%clk 0:00:09.3]} 25... Bd5 {[%clk 0:00:41.3]} 26. c4
{[%clk 0:00:09]} 26... Bxe5 {[%clk 0:00:39.3]} 27. cxd5 {[%clk 0:00:08.8]} 27...
Bxd4 {[%clk 0:00:39.4]} 28. Rad1 {[%clk 0:00:09.2]} 28... Bc5 {[%clk 0:00:36.9]}
29. h4 {[%clk 0:00:08.2]} 29... Kd7 {[%clk 0:00:36.1]} 30. Kg2 {[%clk
0:00:08.3]} 30... Rhf8 {[%clk 0:00:35.8]} 31. f3 {[%clk 0:00:07.8]} 31... Rf5
{[%clk 0:00:33.3]} 32. Rxe8 {[%clk 0:00:06.3]} 32... Kxe8 {[%clk 0:00:33.3]} 33.
Bf4 {[%clk 0:00:06.8]} 33... Kd7 {[%clk 0:00:33]} 34. Rd3 {[%clk 0:00:07.1]}
34... Bd6 {[%clk 0:00:32.8]} 35. Be3 {[%clk 0:00:06.1]} 35... a6 {[%clk
0:00:32.4]} 36. g4 {[%clk 0:00:06.6]} 36... Rf8 {[%clk 0:00:31.9]} 37. f4 {[%clk
0:00:06.6]} 37... h5 {[%clk 0:00:31.3]} 38. gxh5 {[%clk 0:00:05.8]} 38... gxh5
{[%clk 0:00:31.5]} 39. Kf3 {[%clk 0:00:06.4]} 39... Rg8 {[%clk 0:00:30.2]} 40.
Rd1 {[%clk 0:00:06.3]} 40... Rg4 {[%clk 0:00:29.1]} 41. Rg1 {[%clk 0:00:06.6]}
41... Rxg1 {[%clk 0:00:27.1]} 42. Bxg1 {[%clk 0:00:07.5]} 42... Be7 {[%clk
0:00:27.3]} 43. Bf2 {[%clk 0:00:07.3]} 43... b5 {[%clk 0:00:27]} 44. axb5 {[%clk
0:00:07.1]} 44... axb5 {[%clk 0:00:27.9]} 45. Ke4 {[%clk 0:00:07.6]} 45... b4
{[%clk 0:00:28]} 46. Kd4 {[%clk 0:00:06]} 46... b3 {[%clk 0:00:27.9]} 47. Kc3
{[%clk 0:00:06.1]} 47... Kd6 {[%clk 0:00:28.1]} 48. Kxb3 {[%clk 0:00:05.6]}
48... Kxd5 {[%clk 0:00:28.7]} 49. Kc3 {[%clk 0:00:05.6]} 49... Ke4 {[%clk
0:00:29]} 50. f5 {[%clk 0:00:02]} 50... Kxf5 {[%clk 0:00:29.1]} 51. Kd4 {[%clk
0:00:02.5]} 51... Kg4 {[%clk 0:00:29.1]} 52. Ke5 {[%clk 0:00:01.6]} 52... Bxh4
{[%clk 0:00:28.9]} 53. Bg1 {[%clk 0:00:02.3]} 53... Bg3+ {[%clk 0:00:29]} 54.
Ke4 {[%clk 0:00:02.6]} 54... h4 {[%clk 0:00:28.9]} 55. Kd5 {[%clk 0:00:01.8]}
55... Kf3 {[%clk 0:00:27.9]} 0-1

[Event "Early-Titled-Tuesday-Blitz-September-26-2023"]
[Site "Chess.com"]
[Date "2023.09.26"]
[Round "10"]
[White "GG91"]
[Black "Gyulamiryan-koryun"]
[Result "1-0"]
[WhiteElo "2336"]
[BlackElo "2013"]
[TimeControl "180+1"]
[EndTime "9:56:34 PDT"]
[Termination "GG91 won on time"]

1. d4 {[%clk 0:03:00.9]} 1... Nf6 {[%clk 0:02:57.7]} 2. Nf3 {[%clk 0:03:01.8]}
2... g6 {[%clk 0:02:57.1]} 3. Nbd2 {[%clk 0:03:01.7]} 3... Bg7 {[%clk
0:02:56.5]} 4. e4 {[%clk 0:03:01.6]} 4... d6 {[%clk 0:02:56.5]} 5. Bd3 {[%clk
0:03:01.4]} 5... O-O {[%clk 0:02:56.3]} 6. c3 {[%clk 0:03:02]} 6... c5 {[%clk
0:02:55.5]} 7. O-O {[%clk 0:03:01]} 7... Nc6 {[%clk 0:02:54.1]} 8. h3 {[%clk
0:02:57.8]} 8... cxd4 {[%clk 0:02:51.2]} 9. cxd4 {[%clk 0:02:57.5]} 9... Nb4
{[%clk 0:02:51.5]} 10. Bb1 {[%clk 0:02:55.7]} 10... d5 {[%clk 0:02:49.8]} 11. e5
{[%clk 0:02:54]} 11... Nh5 {[%clk 0:02:38.4]} 12. a3 {[%clk 0:02:52.9]} 12...
Nc6 {[%clk 0:02:38]} 13. Nb3 {[%clk 0:02:50.8]} 13... Bh8 {[%clk 0:02:32]} 14.
g4 {[%clk 0:02:48.1]} 14... Ng7 {[%clk 0:02:31]} 15. Bh6 {[%clk 0:02:37.1]}
15... e6 {[%clk 0:02:29.9]} 16. Nc5 {[%clk 0:02:28.7]} 16... b6 {[%clk
0:02:23.8]} 17. Nd3 {[%clk 0:02:25.4]} 17... Re8 {[%clk 0:02:14.1]} 18. Qd2
{[%clk 0:02:06.8]} 18... Na5 {[%clk 0:02:02.2]} 19. Ba2 {[%clk 0:02:00.3]} 19...
Ba6 {[%clk 0:01:54.6]} 20. Rfd1 {[%clk 0:01:56.5]} 20... Bc4 {[%clk 0:01:53.2]}
21. b3 {[%clk 0:01:53.2]} 21... Bxb3 {[%clk 0:01:50.8]} 22. Re1 {[%clk
0:01:26.9]} 22... Bxa2 {[%clk 0:01:47]} 23. Rxa2 {[%clk 0:01:26.1]} 23... Nc4
{[%clk 0:01:45.2]} 24. Qf4 {[%clk 0:01:26.3]} 24... Qd7 {[%clk 0:01:24.4]} 25.
h4 {[%clk 0:01:18]} 25... Rec8 {[%clk 0:01:22.7]} 26. Ng5 {[%clk 0:00:54.3]}
26... Ne8 {[%clk 0:01:10.1]} 27. Kg2 {[%clk 0:00:54.2]} 27... Bg7 {[%clk
0:01:09.8]} 28. Bxg7 {[%clk 0:00:53.5]} 28... Nxg7 {[%clk 0:01:10]} 29. Rh1
{[%clk 0:00:51.8]} 29... h6 {[%clk 0:01:10.1]} 30. Nf3 {[%clk 0:00:49.3]} 30...
Kh7 {[%clk 0:01:09.6]} 31. h5 {[%clk 0:00:32.9]} 31... g5 {[%clk 0:01:07.7]} 32.
Nxg5+ {[%clk 0:00:32.2]} 32... hxg5 {[%clk 0:01:07.2]} 33. Qxg5 {[%clk
0:00:33.1]} 33... Qd8 {[%clk 0:01:02.4]} 34. Qf4 {[%clk 0:00:29.2]} 34... Qe7
{[%clk 0:00:52.1]} 35. g5 {[%clk 0:00:25.9]} 35... Nf5 {[%clk 0:00:44.6]} 36.
g6+ {[%clk 0:00:20.1]} 36... Kg7 {[%clk 0:00:44.5]} 37. h6+ {[%clk 0:00:18.2]}
37... Kxg6 {[%clk 0:00:40.2]} 38. Kf3 {[%clk 0:00:18]} 38... Kh7 {[%clk
0:00:29.7]} 39. Rg1 {[%clk 0:00:16.5]} 39... Rg8 {[%clk 0:00:28.6]} 40. Raa1
{[%clk 0:00:16.6]} 40... Rg6 {[%clk 0:00:25.2]} 41. Rxg6 {[%clk 0:00:16.3]}
41... fxg6 {[%clk 0:00:24.2]} 42. Qg4 {[%clk 0:00:16.5]} 42... Nxh6 {[%clk
0:00:23.1]} 43. Qh3 {[%clk 0:00:16.1]} 43... Rf8+ {[%clk 0:00:14.4]} 44. Ke2
{[%clk 0:00:15.6]} 44... Qf7 {[%clk 0:00:12.3]} 45. Rh1 {[%clk 0:00:13.2]} 45...
Qg7 {[%clk 0:00:04.5]} 46. Qg3 {[%clk 0:00:13.5]} 46... Rf5 {[%clk 0:00:03.5]}
47. Nf4 {[%clk 0:00:12.8]} 1-0

[Event "Early-Titled-Tuesday-Blitz-September-26-2023"]
[Site "Chess.com"]
[Date "2023.09.26"]
[Round "10"]
[White "vovachesss"]
[Black "deribas12345"]
[Result "1-0"]
[WhiteElo "2730"]
[BlackElo "2569"]
[TimeControl "180+1"]
[EndTime "9:56:37 PDT"]
[Termination "vovachesss won by checkmate"]

1. e4 {[%clk 0:03:00.9]} 1... c5 {[%clk 0:02:59.2]} 2. Nf3 {[%clk 0:03:00.7]}
2... d6 {[%clk 0:02:57.4]} 3. d4 {[%clk 0:03:00.5]} 3... cxd4 {[%clk 0:02:58.3]}
4. Nxd4 {[%clk 0:03:01.4]} 4... Nf6 {[%clk 0:02:57.8]} 5. Nc3 {[%clk 0:03:02]}
5... a6 {[%clk 0:02:55.4]} 6. Rg1 {[%clk 0:03:01.3]} 6... e5 {[%clk 0:02:53.8]}
7. Nb3 {[%clk 0:03:00.9]} 7... Be7 {[%clk 0:02:37.5]} 8. g4 {[%clk 0:02:57.8]}
8... Be6 {[%clk 0:02:27.4]} 9. g5 {[%clk 0:02:56.8]} 9... Nfd7 {[%clk
0:02:27.6]} 10. Be3 {[%clk 0:02:54.6]} 10... Nc6 {[%clk 0:02:25.7]} 11. Qf3
{[%clk 0:02:50.3]} 11... Nb4 {[%clk 0:02:20.8]} 12. O-O-O {[%clk 0:02:45.7]}
12... Rc8 {[%clk 0:02:20.1]} 13. Kb1 {[%clk 0:02:33.5]} 13... O-O {[%clk
0:02:16.2]} 14. a3 {[%clk 0:01:45.6]} 14... Rxc3 {[%clk 0:02:13.8]} 15. bxc3
{[%clk 0:01:46.5]} 15... Nc6 {[%clk 0:02:13.8]} 16. Bh3 {[%clk 0:01:38.6]} 16...
Bxh3 {[%clk 0:01:52.6]} 17. Qxh3 {[%clk 0:01:38.1]} 17... Nb6 {[%clk 0:01:53.1]}
18. Ka2 {[%clk 0:01:34.9]} 18... Na4 {[%clk 0:01:49.7]} 19. Bc1 {[%clk 0:01:27]}
19... b5 {[%clk 0:01:45.9]} 20. Rd5 {[%clk 0:01:12]} 20... Na5 {[%clk
0:01:39.8]} 21. Rgd1 {[%clk 0:00:59]} 21... Qc7 {[%clk 0:01:36.4]} 22. Bb2
{[%clk 0:00:29.3]} 22... Nc4 {[%clk 0:01:34.1]} 23. Ba1 {[%clk 0:00:27.2]} 23...
g6 {[%clk 0:01:18.8]} 24. Qg3 {[%clk 0:00:25.4]} 24... Rc8 {[%clk 0:01:13.2]}
25. h4 {[%clk 0:00:25.3]} 25... Ncb6 {[%clk 0:01:11.7]} 26. R5d3 {[%clk
0:00:24.1]} 26... Qc4 {[%clk 0:01:07.9]} 27. Qe3 {[%clk 0:00:21.9]} 27... Nc5
{[%clk 0:00:26]} 28. Rxd6 {[%clk 0:00:15.6]} 28... Bxd6 {[%clk 0:00:25.6]} 29.
Rxd6 {[%clk 0:00:16.5]} 29... Nba4 {[%clk 0:00:26.2]} 30. f3 {[%clk 0:00:08.8]}
30... a5 {[%clk 0:00:14.8]} 31. Rd2 {[%clk 0:00:06.9]} 31... Qf1 {[%clk
0:00:13.6]} 32. Qe2 {[%clk 0:00:04.7]} 32... Qh1 {[%clk 0:00:13.3]} 33. Qxb5
{[%clk 0:00:04.3]} 33... Qxh4 {[%clk 0:00:08.8]} 34. Nxc5 {[%clk 0:00:03.8]}
34... Nxc5 {[%clk 0:00:08.6]} 35. Rd5 {[%clk 0:00:04.2]} 35... Ne6 {[%clk
0:00:08]} 36. Qd7 {[%clk 0:00:02.3]} 36... Rd8 {[%clk 0:00:07.4]} 37. Qe7 {[%clk
0:00:02.8]} 37... Rc8 {[%clk 0:00:07.1]} 38. Rxe5 {[%clk 0:00:02.6]} 38... Qf2
{[%clk 0:00:06.5]} 39. Rb5 {[%clk 0:00:02.7]} 39... Qxc2+ {[%clk 0:00:06.4]} 40.
Rb2 {[%clk 0:00:03.6]} 40... Qxc3 {[%clk 0:00:05.2]} 41. Qb7 {[%clk 0:00:04.5]}
41... Qc4+ {[%clk 0:00:05.1]} 42. Qb3 {[%clk 0:00:05.1]} 42... Qc6 {[%clk
0:00:04.6]} 43. Rd2 {[%clk 0:00:05.1]} 43... Nc5 {[%clk 0:00:04.8]} 44. Qc3
{[%clk 0:00:04.8]} 44... Qe6+ {[%clk 0:00:04.8]} 45. Kb1 {[%clk 0:00:05.4]}
45... a4 {[%clk 0:00:03.9]} 46. Qg7# {[%clk 0:00:05.3]} 1-0

[Event "Early-Titled-Tuesday-Blitz-September-26-2023"]
[Site "Chess.com"]
[Date "2023.09.26"]
[Round "10"]
[White "emeli_chess"]
[Black "JosefineHeinemann"]
[Result "0-1"]
[WhiteElo "2353"]
[BlackElo "2543"]
[TimeControl "180+1"]
[EndTime "9:56:46 PDT"]
[Termination "JosefineHeinemann won by resignation"]

1. d4 {[%clk 0:03:00.9]} 1... d5 {[%clk 0:02:59]} 2. c4 {[%clk 0:03:00.9]} 2...
e6 {[%clk 0:02:59]} 3. Nc3 {[%clk 0:03:01.2]} 3... dxc4 {[%clk 0:02:58.2]} 4. e3
{[%clk 0:03:00]} 4... c5 {[%clk 0:02:57.8]} 5. Bxc4 {[%clk 0:02:59.7]} 5... cxd4
{[%clk 0:02:58.1]} 6. exd4 {[%clk 0:03:00.1]} 6... Nf6 {[%clk 0:02:58.8]} 7. Nf3
{[%clk 0:03:00]} 7... b6 {[%clk 0:02:57]} 8. O-O {[%clk 0:02:59.6]} 8... Bb7
{[%clk 0:02:57.6]} 9. Bg5 {[%clk 0:02:58.5]} 9... Be7 {[%clk 0:02:58]} 10. Qe2
{[%clk 0:02:53.8]} 10... O-O {[%clk 0:02:57.8]} 11. Rad1 {[%clk 0:02:53.5]}
11... Nbd7 {[%clk 0:02:58]} 12. Rfe1 {[%clk 0:02:48.7]} 12... Rc8 {[%clk
0:02:57.6]} 13. Bb3 {[%clk 0:02:39.5]} 13... h6 {[%clk 0:02:53.1]} 14. d5 {[%clk
0:02:30.8]} 14... Nxd5 {[%clk 0:02:14.5]} 15. Bxd5 {[%clk 0:02:01.1]} 15... Bxd5
{[%clk 0:02:05.9]} 16. Bxe7 {[%clk 0:01:59.2]} 16... Bxf3 {[%clk 0:02:05.5]} 17.
Qxf3 {[%clk 0:01:53.4]} 17... Qxe7 {[%clk 0:02:04.4]} 18. Qb7 {[%clk 0:01:53.1]}
18... Rcd8 {[%clk 0:01:59.7]} 19. Qxa7 {[%clk 0:01:51.1]} 19... Rfe8 {[%clk
0:01:58.6]} 20. a3 {[%clk 0:01:43.7]} 20... Kf8 {[%clk 0:01:57.2]} 21. Qc7
{[%clk 0:01:41.3]} 21... Nf6 {[%clk 0:01:37.4]} 22. Qxb6 {[%clk 0:01:35.9]}
22... Rb8 {[%clk 0:01:37]} 23. Qd6 {[%clk 0:01:28.5]} 23... Qxd6 {[%clk
0:01:36.7]} 24. Rxd6 {[%clk 0:01:27.7]} 24... Rxb2 {[%clk 0:01:37.6]} 25. f3
{[%clk 0:01:15.3]} 25... Ra8 {[%clk 0:01:35.2]} 26. a4 {[%clk 0:01:14.4]} 26...
Rb3 {[%clk 0:01:35.4]} 27. Rc6 {[%clk 0:01:12.2]} 27... Ke8 {[%clk 0:01:29.3]}
28. Ra1 {[%clk 0:01:10.4]} 28... Kd7 {[%clk 0:01:29]} 29. Rc4 {[%clk 0:01:09.8]}
29... Nd5 {[%clk 0:01:23]} 30. Nxd5 {[%clk 0:01:05.4]} 30... exd5 {[%clk
0:01:23.9]} 31. Rc2 {[%clk 0:01:01.7]} 31... Ra5 {[%clk 0:01:19.5]} 32. Rac1
{[%clk 0:00:45.7]} 32... Rb7 {[%clk 0:01:13.7]} 33. Rc5 {[%clk 0:00:44.7]} 33...
Rba7 {[%clk 0:01:10.8]} 34. Rb5 {[%clk 0:00:32.5]} 34... Rxb5 {[%clk 0:01:10.6]}
35. axb5 {[%clk 0:00:32.8]} 35... Rc7 {[%clk 0:01:06.9]} 36. Rb1 {[%clk
0:00:25.2]} 36... Kd6 {[%clk 0:01:04]} 37. Kf2 {[%clk 0:00:23.2]} 37... Rb7
{[%clk 0:01:04.2]} 38. Ke3 {[%clk 0:00:22.9]} 38... Kc5 {[%clk 0:01:04.7]} 39.
Kf4 {[%clk 0:00:18.1]} 39... Rxb5 {[%clk 0:01:03.5]} 40. Rc1+ {[%clk 0:00:17]}
40... Kd6 {[%clk 0:01:03.7]} 41. Rc8 {[%clk 0:00:15.3]} 41... Rb4+ {[%clk
0:01:00.1]} 42. Kf5 {[%clk 0:00:13.1]} 42... Rb2 {[%clk 0:00:58.5]} 43. g4
{[%clk 0:00:11.9]} 43... Rxh2 {[%clk 0:00:58]} 44. f4 {[%clk 0:00:10.7]} 44...
Re2 {[%clk 0:00:52.8]} 45. Rd8+ {[%clk 0:00:10.3]} 45... Kc6 {[%clk 0:00:53.1]}
46. Rg8 {[%clk 0:00:09]} 46... d4 {[%clk 0:00:45.1]} 47. Rxg7 {[%clk 0:00:07.2]}
47... d3 {[%clk 0:00:44.4]} 48. Rg8 {[%clk 0:00:06.9]} 48... Kc7 {[%clk
0:00:40.6]} 49. Rf8 {[%clk 0:00:04.6]} 49... d2 {[%clk 0:00:40.7]} 50. Rxf7+
{[%clk 0:00:05.1]} 50... Kc6 {[%clk 0:00:41.3]} 51. Rf6+ {[%clk 0:00:05.2]}
51... Kc5 {[%clk 0:00:41.8]} 52. Rxh6 {[%clk 0:00:04.5]} 52... d1=Q {[%clk
0:00:42.1]} 53. Rf6 {[%clk 0:00:04.5]} 53... Qd5+ {[%clk 0:00:41.4]} 54. Kg6
{[%clk 0:00:04.7]} 54... Re6 {[%clk 0:00:41]} 55. g5 {[%clk 0:00:03.2]} 55...
Kd6 {[%clk 0:00:39.2]} 56. f5 {[%clk 0:00:03.2]} 56... Rxf6+ {[%clk 0:00:38.1]}
57. gxf6 {[%clk 0:00:03.6]} 57... Qg8+ {[%clk 0:00:36.2]} 58. Kh6 {[%clk
0:00:03.2]} 58... Ke5 {[%clk 0:00:35.6]} 59. f7 {[%clk 0:00:03.5]} 59... Qxf7
{[%clk 0:00:35.7]} 60. f6 {[%clk 0:00:03.9]} 60... Qxf6+ {[%clk 0:00:35.2]} 61.
Kh7 {[%clk 0:00:04.3]} 61... Qg5 {[%clk 0:00:35.3]} 62. Kh8 {[%clk 0:00:04.4]}
62... Kf6 {[%clk 0:00:36.2]} 0-1

[Event "Early-Titled-Tuesday-Blitz-September-26-2023"]
[Site "Chess.com"]
[Date "2023.09.26"]
[Round "10"]
[White "Roedor"]
[Black "FMStan15"]
[Result "1-0"]
[WhiteElo "2343"]
[BlackElo "2116"]
[TimeControl "180+1"]
[EndTime "9:56:46 PDT"]
[Termination "Roedor won on time"]

1. d4 {[%clk 0:02:57.9]} 1... Nf6 {[%clk 0:02:52.3]} 2. c4 {[%clk 0:02:55.8]}
2... d6 {[%clk 0:02:51.2]} 3. Nf3 {[%clk 0:02:55.5]} 3... g6 {[%clk 0:02:51.4]}
4. Nc3 {[%clk 0:02:55.4]} 4... Bg7 {[%clk 0:02:52.3]} 5. g3 {[%clk 0:02:55.9]}
5... O-O {[%clk 0:02:52.8]} 6. Bg2 {[%clk 0:02:56.5]} 6... Nbd7 {[%clk
0:02:53.2]} 7. O-O {[%clk 0:02:57]} 7... e5 {[%clk 0:02:53.8]} 8. e4 {[%clk
0:02:57.3]} 8... c6 {[%clk 0:02:47.3]} 9. h3 {[%clk 0:02:56.5]} 9... a5 {[%clk
0:02:46.9]} 10. Be3 {[%clk 0:02:53.9]} 10... Qe7 {[%clk 0:02:46.6]} 11. Qc2
{[%clk 0:02:47.9]} 11... Nh5 {[%clk 0:02:45.9]} 12. Rad1 {[%clk 0:02:43.8]}
12... f5 {[%clk 0:02:43.5]} 13. exf5 {[%clk 0:02:43.2]} 13... gxf5 {[%clk
0:02:43.4]} 14. dxe5 {[%clk 0:02:43.5]} 14... dxe5 {[%clk 0:02:43.3]} 15. Bg5
{[%clk 0:01:51.2]} 15... Qf7 {[%clk 0:02:40.3]} 16. Rfe1 {[%clk 0:01:45.8]}
16... Qxc4 {[%clk 0:02:30.5]} 17. Be7 {[%clk 0:01:37]} 17... Re8 {[%clk
0:02:27.8]} 18. Qxf5 {[%clk 0:00:57.8]} 18... Rxe7 {[%clk 0:01:24.4]} 19. Qxh5
{[%clk 0:00:56.5]} 19... Nf6 {[%clk 0:01:20.8]} 20. Qg5 {[%clk 0:00:55.5]} 20...
e4 {[%clk 0:00:56.4]} 21. Rd8+ {[%clk 0:00:51.9]} 21... Re8 {[%clk 0:00:54.1]}
22. Rxe8+ {[%clk 0:00:47]} 22... Nxe8 {[%clk 0:00:53.6]} 23. Rxe4 {[%clk
0:00:46.4]} 23... Qf7 {[%clk 0:00:53.6]} 24. Re7 {[%clk 0:00:44.1]} 24... Qg6
{[%clk 0:00:51.4]} 25. Qxg6 {[%clk 0:00:34.6]} 25... hxg6 {[%clk 0:00:51]} 26.
Rxe8+ {[%clk 0:00:35.2]} 26... Kf7 {[%clk 0:00:51.3]} 27. Re1 {[%clk 0:00:20]}
27... Bf6 {[%clk 0:00:47.1]} 28. g4 {[%clk 0:00:16.4]} 28... Be6 {[%clk
0:00:42.4]} 29. Ne5+ {[%clk 0:00:15.2]} 29... Kg7 {[%clk 0:00:37.6]} 30. f4
{[%clk 0:00:14.8]} 30... Bh4 {[%clk 0:00:35.1]} 31. Rd1 {[%clk 0:00:14.4]} 31...
Rf8 {[%clk 0:00:30.9]} 32. Rd6 {[%clk 0:00:13.5]} 32... Re8 {[%clk 0:00:21.1]}
33. Ne4 {[%clk 0:00:07.9]} 33... Bxa2 {[%clk 0:00:12.4]} 34. Rxg6+ {[%clk
0:00:06.9]} 34... Kh7 {[%clk 0:00:12.3]} 35. Ng5+ {[%clk 0:00:05.2]} 35... Bxg5
{[%clk 0:00:11.7]} 36. Rxg5 {[%clk 0:00:06.1]} 36... Bd5 {[%clk 0:00:04.5]} 37.
Bxd5 {[%clk 0:00:06]} 37... cxd5 {[%clk 0:00:04.7]} 38. Kf2 {[%clk 0:00:05.8]}
38... d4 {[%clk 0:00:04.5]} 39. Ke2 {[%clk 0:00:06.1]} 39... Re6 {[%clk
0:00:04.9]} 40. Kd3 {[%clk 0:00:06.4]} 40... Rb6 {[%clk 0:00:04.8]} 41. Rh5+
{[%clk 0:00:06.3]} 41... Kg7 {[%clk 0:00:04.1]} 42. Nc4 {[%clk 0:00:06.9]} 42...
Rb3+ {[%clk 0:00:02.6]} 43. Kxd4 {[%clk 0:00:06.1]} 43... b5 {[%clk 0:00:02.5]}
44. Rg5+ {[%clk 0:00:05.6]} 44... Kf6 {[%clk 0:00:02]} 45. Rf5+ {[%clk
0:00:05.5]} 45... Kg6 {[%clk 0:00:02.1]} 46. Ne5+ {[%clk 0:00:05.2]} 46... Kg7
{[%clk 0:00:02.5]} 47. Rf7+ {[%clk 0:00:05.5]} 47... Kg8 {[%clk 0:00:02.9]} 48.
Rb7 {[%clk 0:00:05.3]} 48... Rxb2 {[%clk 0:00:02.5]} 49. g5 {[%clk 0:00:06.1]}
49... Rd2+ {[%clk 0:00:02.1]} 50. Ke4 {[%clk 0:00:06.2]} 50... Rd6 {[%clk
0:00:01.3]} 51. f5 {[%clk 0:00:06.2]} 1-0